[Event "EYCC Open U10 2021"]
[Site "Tornelo"]
[Date "2021.10.15"]
[Round "9.7"]
[White "Ivanov, Andrey A."]
[Black "Kozlov, Kirill Dm."]
[Result "1/2-1/2"]
[ECO "B47"]
[WhiteElo "2180"]
[BlackElo "1228"]
[Annotator "ChessBase"]
[PlyCount "116"]
[EventDate "2021.10.15"]
[EventType "swiss"]
[EventCountry "NET"]
[SourceTitle "playchess.com"]
[Source "ChessBase"]
[SourceQuality "1"]
[TimeControl "5400+30"]

1. e4 {[%emt 0:14:25]} c5 {[%emt 0:00:45]} 2. Nf3 {[%emt 0:00:07]} e6 {[%emt 0:00:07]} 3. d4 {[%emt 0:00:05]} cxd4 {[%emt 0:00:06]} 4. Nxd4 {[%emt 0:00:05]} a6 {[%emt 0:00:06]} 5. Nc3 {[%emt 0:00:07]} Qc7 {[%emt 0:00:25]} 6. Be2 {[%emt 0:00:23]} Nf6 {[%emt 0:00:15]} 7. O-O {[%emt 0:02:12]} Be7 {[%emt 0:00:19]} 8. Bg5 {[%emt 0:05:21]} Nc6 {[%emt 0:03:39]} 9. Kh1 {[%emt 0:00:31]} h6 {[%emt 0:00:35]} 10. Bh4 {[%emt 0:04:31]} Nxe4 {[%emt 0:06:01]} 11. Nxe4 {[%emt 0:04:17]} Bxh4 {[%emt 0:00:22]} 12. Nxc6 {[%emt 0:00:43]} dxc6 {[%emt 0:00:12]} 13. Nd6+ {[%emt 0:00:16]} Ke7 {[%emt 0:00:11]} 14. Qd4 {[%emt 0:02:27]} Bf6 {[%emt 0:01:55]} 15. Nxc8+ {[%emt 0:00:59]} Raxc8 {[%emt 0:00:13]} 16. Qc5+ {[%emt 0:00:13]} Qd6 {[%emt 0:00:08]} 17. Qb6 {[%emt 0:00:10]} Qc7 {[%emt 0:04:57]} 18. Qc5+ {[%emt 0:00:47]} Qd6 {[%emt 0:00:05]} 19. Qb6 {[%emt 0:00:05]} Qb8 {[%emt 0:17:23]} 20. f4 {[%emt 0:05:55]} Rhd8 {[%emt 0:02:02]} 21. Qc5+ {[%emt 0:02:14]} Ke8 {[%emt 0:03:17]} 22. Bc4 {[%emt 0:05:46]} b5 {[%emt 0:05:19]} 23. Bb3 {[%emt 0:00:50]} a5 {[%emt 0:06:25]} 24. a3 {[%emt 0:12:25]} g6 {[%emt 0:23:52]} 25. Qe3 {[%emt 0:05:53]} Ke7 {[%emt 0:07:26]} 26. Rae1 {[%emt 0:04:31]} Qd6 {[%emt 0:01:29]} 27. f5 {[%emt 0:01:40]} gxf5 {[%emt 0:08:03]} 28. Rxf5 {[%emt 0:00:16]} Qd4 {[%emt 0:00:29]} 29. Qf3 {[%emt 0:07:54]} Rg8 {[%emt 0:01:42]} 30. Rf4 {[%emt 0:01:22]} Qxb2 {[%emt 0:00:18]} 31. Rf1 {[%emt 0:01:21]} Rg6 {[%emt 0:00:08]} 32. Qe3 {[%emt 0:04:47]} Qc3 {[%emt 0:02:19]} 33. Qa7+ {[%emt 0:00:50]} Ke8 {[%emt 0:00:48]} 34. Qf2 {[%emt 0:00:25]} Ke7 {[%emt 0:00:18]} 35. Qa7+ {[%emt 0:00:13]} Ke8 {[%emt 0:00:07]} 36. R4f3 {[%emt 0:01:31]} Qd2 {[%emt 0:00:57]} 37. R3f2 {[%emt 0:00:21]} Qc3 {[%emt 0:00:08]} 38. Qb6 {[%emt 0:04:14]} Bd4 {[%emt 0:02:14]} 39. Qb7 {[%emt 0:00:18]} Bxf2 {[%emt 0:00:06]} 40. Qxc8+ {[%emt 0:00:05]} Ke7 {[%emt 0:00:04]} 41. Rd1 {[%emt 0:01:43]} Bd4 {[%emt 0:01:23]} 42. Qc7+ {[%emt 0:00:26]} Ke8 {[%emt 0:00:05]} 43. Qc8+ {[%emt 0:02:01]} Ke7 {[%emt 0:00:05]} 44. Qc7+ {[%emt 0:00:23]} Ke8 {[%emt 0:00:05]} 45. Qd6 {[%emt 0:01:18]} c5 {[%emt 0:00:55]} 46. Qc6+ {[%emt 0:00:15]} Kf8 {[%emt 0:00:25]} 47. Qxb5 {[%emt 0:00:21]} Kg7 {[%emt 0:00:08]} 48. Qc6 {[%emt 0:02:35]} Qe3 {[%emt 0:01:13]} 49. Bc4 {[%emt 0:02:50]} Qxa3 {[%emt 0:00:16]} 50. Bd3 {[%emt 0:00:10]} Rf6 {[%emt 0:00:17]} 51. Qe4 {[%emt 0:00:22]} Rg6 {[%emt 0:00:28]} 52. Qe2 {[%emt 0:00:21]} Rf6 {[%emt 0:00:39]} 53. Qg4+ {[%emt 0:00:11]} Kf8 {[%emt 0:00:12]} 54. Qg3 {[%emt 0:00:51]} Qb4 {[%emt 0:00:36]} 55. Qd6+ {[%emt 0:00:14]} Kg7 {[%emt 0:00:13]} 56. Qg3+ {[%emt 0:00:05]} Kf8 {[%emt 0:00:11]} 57. Qd6+ {[%emt 0:00:05]} Kg7 {[%emt 0:00:03]} 58. Qg3+ {[%emt 0:00:04]} Kf8 {[%emt 0:01:36]} 1/2-1/2

[Event "EYCC Open U10 2021"]
[Site "Tornelo"]
[Date "2021.10.15"]
[Round "9.8"]
[White "Gabadadze, Gabriel"]
[Black "Ochedzan, Filip"]
[Result "0-1"]
[ECO "B95"]
[WhiteElo "1407"]
[BlackElo "1696"]
[Annotator "NA"]
[PlyCount "96"]
[EventDate "2021.10.15"]
[EventType "swiss"]
[EventCountry "NET"]
[SourceTitle "playchess.com"]
[Source "ChessBase"]
[SourceQuality "1"]
[TimeControl "5400+30"]

1. e4 {[%emt 0:00:30]} c5 {[%emt 0:00:36]} 2. Nf3 {[%emt 0:00:08]} d6 {[%emt 0:00:06]} 3. d4 {[%emt 0:00:07]} cxd4 {[%emt 0:00:04]} 4. Nxd4 {[%emt 0:00:06]} Nf6 {[%emt 0:00:03]} 5. Nc3 {[%emt 0:00:07]} a6 {[%emt 0:00:05]} 6. Bg5 {[%emt 0:00:08]} e6 {[%emt 0:00:14]} 7. Qf3 {[%emt 0:00:12]} h6 {[%emt 0:00:26]} 8. Be3 {[%emt 0:02:10]} e5 {[%emt 0:00:45]} 9. Nb3 {[%emt 0:01:35]} Be7 {[%emt 0:00:51]} 10. h3 {[%emt 0:01:14]} O-O {[%emt 0:03:03]} 11. O-O-O {[%emt 0:00:40]} b5 {[%emt 0:02:02]} 12. a3 {[%emt 0:00:53]} Be6 {[%emt 0:03:43]} 13. Nc5 {[%emt 0:10:35]} Qc7 {[%emt 0:01:47]} 14. Nxe6 {[%emt 0:00:34]} fxe6 {[%emt 0:00:05]} 15. Qg3 {[%emt 0:11:40]} Kh7 {[%emt 0:03:28]} 16. Be2 {[%emt 0:01:31]} Nc6 {[%emt 0:07:15]} 17. Bg4 {[%emt 0:02:46]} Nd8 {[%emt 0:01:20]} 18. f4 {[%emt 0:01:47]} Rc8 {[%emt 0:09:27]} 19. fxe5 {[%emt 0:17:01]} Nxe4 {[%emt 0:07:42]} 20. exd6 {[%emt 0:00:50]} Bxd6 {[%emt 0:01:20]} 21. Rxd6 {[%emt 0:04:07]} Nxg3 {[%emt 0:00:57]} 22. Rhd1 {[%emt 0:00:55]} Rf1 {[%emt 0:01:53]} 23. R6d2 {[%emt 0:01:52]} Rxd1+ {[%emt 0:00:52]} 24. Rxd1 {[%emt 0:00:46]} Nf5 {[%emt 0:00:22]} 25. Bxf5+ {[%emt 0:00:50]} exf5 {[%emt 0:00:06]} 26. Rf1 {[%emt 0:00:30]} Qe5 {[%emt 0:00:33]} 27. Bf4 {[%emt 0:00:53]} Qe6 {[%emt 0:00:09]} 28. Rd1 {[%emt 0:00:22]} Nf7 {[%emt 0:00:30]} 29. Bd2 {[%emt 0:00:27]} Nd6 {[%emt 0:00:32]} 30. Re1 {[%emt 0:00:53]} Qf7 {[%emt 0:00:22]} 31. b3 {[%emt 0:00:26]} Ne4 {[%emt 0:00:38]} 32. Re3 {[%emt 0:01:12]} Nxd2 {[%emt 0:01:08]} 33. Kxd2 {[%emt 0:00:14]} f4 {[%emt 0:00:10]} 34. Rd3 {[%emt 0:00:21]} Qe7 {[%emt 0:00:25]} 35. b4 {[%emt 0:00:41]} Qg5 {[%emt 0:00:20]} 36. h4 {[%emt 0:01:53]} Qxg2+ {[%emt 0:00:11]} 37. Kc1 {[%emt 0:00:22]} f3 {[%emt 0:00:08]} 38. Rd2 {[%emt 0:00:27]} f2 {[%emt 0:00:12]} 39. Nd1 {[%emt 0:00:42]} f1=Q {[%emt 0:00:23]} 40. Rxg2 {[%emt 0:00:10]} Qxg2 {[%emt 0:00:03]} 41. Ne3 {[%emt 0:00:14]} Qe2 {[%emt 0:00:03]} 42. h5 {[%emt 0:00:20]} Qxe3+ {[%emt 0:00:05]} 43. Kb1 {[%emt 0:00:12]} Qe1+ {[%emt 0:00:13]} 44. Kb2 {[%emt 0:00:11]} Qc3+ {[%emt 0:00:04]} 45. Ka2 {[%emt 0:00:07]} Qxc2+ {[%emt 0:00:03]} 46. Ka1 {[%emt 0:00:08]} Qc1+ {[%emt 0:00:04]} 47. Ka2 {[%emt 0:00:07]} Rc2+ {[%emt 0:00:05]} 48. Kb3 {[%emt 0:00:08]} Qb1# {[%emt 0:00:05]} 0-1

[Event "EYCC Open U10 2021"]
[Site "Tornelo"]
[Date "2021.10.15"]
[Round "9.9"]
[White "Ekmekcioglu, Gokdeniz"]
[Black "Karpenko, Anton"]
[Result "0-1"]
[ECO "E63"]
[WhiteElo "1463"]
[BlackElo "1634"]
[Annotator "NA"]
[PlyCount "66"]
[EventDate "2021.10.15"]
[EventType "swiss"]
[EventCountry "NET"]
[SourceTitle "playchess.com"]
[Source "ChessBase"]
[SourceQuality "1"]
[TimeControl "5400+30"]

1. d4 {[%emt 0:00:30]} Nf6 {[%emt 0:00:34]} 2. c4 {[%emt 0:02:43]} g6 {[%emt 0:00:07]} 3. Nf3 {[%emt 0:00:17]} Bg7 {[%emt 0:00:08]} 4. g3 {[%emt 0:00:06]} d6 {[%emt 0:00:06]} 5. Bg2 {[%emt 0:00:12]} O-O {[%emt 0:00:05]} 6. O-O {[%emt 0:00:04]} Nc6 {[%emt 0:00:06]} 7. Nc3 {[%emt 0:01:04]} a6 {[%emt 0:00:05]} 8. b3 {[%emt 0:01:27]} Rb8 {[%emt 0:00:10]} 9. a4 {[%emt 0:01:05]} Na5 {[%emt 0:13:08]} 10. Bb2 {[%emt 0:01:50]} c5 {[%emt 0:00:31]} 11. d5 {[%emt 0:02:08]} Ne4 {[%emt 0:01:29]} 12. Qc2 {[%emt 0:02:32]} Bf5 {[%emt 0:00:25]} 13. Nxe4 {[%emt 0:01:23]} Bxe4 {[%emt 0:00:13]} 14. Qxe4 {[%emt 0:00:03]} Bxb2 {[%emt 0:00:07]} 15. Rab1 {[%emt 0:02:09]} Bg7 {[%emt 0:00:08]} 16. Qd3 {[%emt 0:03:24]} Qb6 {[%emt 0:00:42]} 17. Ne1 {[%emt 0:04:26]} Qc7 {[%emt 0:03:25]} 18. Nc2 {[%emt 0:01:59]} e6 {[%emt 0:04:59]} 19. e4 {[%emt 0:05:02]} exd5 {[%emt 0:00:22]} 20. exd5 {[%emt 0:00:15]} Rfe8 {[%emt 0:00:50]} 21. Rfe1 {[%emt 0:04:41]} Rxe1+ {[%emt 0:01:00]} 22. Rxe1 {[%emt 0:00:19]} Qd7 {[%emt 0:00:17]} 23. Qe3 {[%emt 0:08:53]} b5 {[%emt 0:00:35]} 24. axb5 {[%emt 0:00:12]} axb5 {[%emt 0:00:05]} 25. Bf1 {[%emt 0:02:36]} bxc4 {[%emt 0:00:15]} 26. bxc4 {[%emt 0:01:15]} Qa4 {[%emt 0:00:27]} 27. Qa3 {[%emt 0:04:04]} Qxc2 {[%emt 0:00:19]} 28. Qxa5 {[%emt 0:00:14]} Bc3 {[%emt 0:00:14]} 29. Qc7 {[%emt 0:04:37]} Bxe1 {[%emt 0:00:10]} 30. Qxb8+ {[%emt 0:00:10]} Kg7 {[%emt 0:00:04]} 31. Bh3 {[%emt 0:05:39]} Bxf2+ {[%emt 0:00:07]} 32. Kg2 {[%emt 0:01:55]} Bd4+ {[%emt 0:00:33]} 33. Kf3 {[%emt 0:01:26]} Qf2+ {[%emt 0:00:23]} 0-1

[Event "EYCC Open U10 2021"]
[Site "Tornelo"]
[Date "2021.10.15"]
[Round "9.10"]
[White "Surikov, Alexey"]
[Black "Zecha, Oscar"]
[Result "0-1"]
[ECO "E04"]
[WhiteElo "1548"]
[BlackElo "1612"]
[Annotator "NA"]
[PlyCount "108"]
[EventDate "2021.10.15"]
[EventType "swiss"]
[EventCountry "NET"]
[SourceTitle "playchess.com"]
[Source "ChessBase"]
[SourceQuality "1"]
[TimeControl "5400+30"]

1. Nf3 {[%emt 0:00:49]} Nf6 {[%emt 0:00:35]} 2. c4 {[%emt 0:00:15]} e6 {[%emt 0:00:16]} 3. g3 {[%emt 0:00:19]} d5 {[%emt 0:07:33]} 4. d4 {[%emt 0:01:02]} dxc4 {[%emt 0:00:15]} 5. Bg2 {[%emt 0:01:00]} Bb4+ {[%emt 0:00:07]} 6. Bd2 {[%emt 0:01:02]} a5 {[%emt 0:00:12]} 7. a3 {[%emt 0:01:46]} Bxd2+ {[%emt 0:02:00]} 8. Nbxd2 {[%emt 0:00:26]} b5 {[%emt 0:03:35]} 9. a4 {[%emt 0:02:24]} c6 {[%emt 0:00:42]} 10. O-O {[%emt 0:00:32]} O-O {[%emt 0:00:41]} 11. Qc2 {[%emt 0:02:58]} Na6 {[%emt 0:04:29]} 12. b3 {[%emt 0:00:54]} Nb4 {[%emt 0:02:01]} 13. Qc1 {[%emt 0:00:20]} cxb3 {[%emt 0:06:05]} 14. Nxb3 {[%emt 0:00:57]} bxa4 {[%emt 0:05:12]} 15. Rxa4 {[%emt 0:00:20]} Ba6 {[%emt 0:00:14]} 16. Qb2 {[%emt 0:07:39]} Bb5 {[%emt 0:08:40]} 17. Ra3 {[%emt 0:00:31]} Nd7 {[%emt 0:02:31]} 18. Nxa5 {[%emt 0:01:55]} Rxa5 {[%emt 0:00:46]} 19. Qxb4 {[%emt 0:00:05]} Rxa3 {[%emt 0:00:07]} 20. Qxa3 {[%emt 0:00:03]} Bxe2 {[%emt 0:00:11]} 21. Rc1 {[%emt 0:00:05]} Bb5 {[%emt 0:00:33]} 22. Qc3 {[%emt 0:02:14]} Nb6 {[%emt 0:01:18]} 23. Ne5 {[%emt 0:00:19]} Nd5 {[%emt 0:07:32]} 24. Qc5 {[%emt 0:03:26]} Ne7 {[%emt 0:00:50]} 25. g4 {[%emt 0:04:00]} f6 {[%emt 0:01:05]} 26. Nxc6 {[%emt 0:09:04]} Nxc6 {[%emt 0:01:38]} 27. Bxc6 {[%emt 0:00:06]} Bxc6 {[%emt 0:00:58]} 28. Qxc6 {[%emt 0:00:57]} Re8 {[%emt 0:05:16]} 29. Re1 {[%emt 0:00:41]} Kf7 {[%emt 0:00:23]} 30. Qe4 {[%emt 0:00:33]} g6 {[%emt 0:00:38]} 31. Ra1 {[%emt 0:00:49]} Re7 {[%emt 0:00:52]} 32. Qe3 {[%emt 0:02:44]} Kg7 {[%emt 0:00:54]} 33. g5 {[%emt 0:01:13]} Qd5 {[%emt 0:01:43]} 34. gxf6+ {[%emt 0:01:55]} Kxf6 {[%emt 0:00:18]} 35. f4 {[%emt 0:01:02]} Rd7 {[%emt 0:02:23]} 36. Rd1 {[%emt 0:01:30]} Rg7 {[%emt 0:02:58]} 37. Qe5+ {[%emt 0:06:45]} Qxe5 {[%emt 0:00:27]} 38. fxe5+ {[%emt 0:01:28]} Kf5 {[%emt 0:00:28]} 39. Kf2 {[%emt 0:00:22]} Ke4 {[%emt 0:00:56]} 40. h4 {[%emt 0:01:46]} Rd7 {[%emt 0:00:52]} 41. Re1+ {[%emt 0:00:04]} Kf4 {[%emt 0:00:41]} 42. Rd1 {[%emt 0:00:12]} Rd5 {[%emt 0:02:45]} 43. h5 {[%emt 0:02:20]} gxh5 {[%emt 0:05:24]} 44. Rh1 {[%emt 0:00:18]} Kg4 {[%emt 0:02:11]} 45. Ke3 {[%emt 0:00:46]} h4 {[%emt 0:00:12]} 46. Rg1+ {[%emt 0:00:09]} Kh5 {[%emt 0:01:28]} 47. Rg7 {[%emt 0:00:31]} h6 {[%emt 0:01:03]} 48. Rg1 {[%emt 0:00:25]} h3 {[%emt 0:00:17]} 49. Rd1 {[%emt 0:00:08]} Kg4 {[%emt 0:00:27]} 50. Kf2 {[%emt 0:00:35]} Ra5 {[%emt 0:03:04]} 51. Rd2 {[%emt 0:00:37]} Ra1 {[%emt 0:00:28]} 52. Rd3 {[%emt 0:01:25]} h2 {[%emt 0:00:27]} 53. Rg3+ {[%emt 0:00:05]} Kh4 {[%emt 0:00:07]} 54. Rg6 {[%emt 0:00:02]} Kh5 {[%emt 0:01:04]} 0-1

[Event "EYCC Open U10 2021"]
[Site "Tornelo"]
[Date "2021.10.15"]
[Round "9.11"]
[White "Tatvidze, Davit"]
[Black "Ahmad, Khagan"]
[Result "0-1"]
[ECO "D02"]
[WhiteElo "1341"]
[BlackElo "2009"]
[Annotator "ChessBase"]
[PlyCount "72"]
[EventDate "2021.10.15"]
[EventType "swiss"]
[EventCountry "NET"]
[SourceTitle "playchess.com"]
[Source "ChessBase"]
[SourceQuality "1"]
[TimeControl "5400+30"]

1. d4 {[%emt 0:00:30]} Nf6 {[%emt 0:00:33]} 2. Bf4 {[%emt 0:00:09]} e6 {[%emt 0:00:11]} 3. e3 {[%emt 0:00:09]} c5 {[%emt 0:00:04]} 4. c3 {[%emt 0:00:22]} Nc6 {[%emt 0:00:50]} 5. Nf3 {[%emt 0:00:22]} d5 {[%emt 0:00:12]} 6. Nbd2 {[%emt 0:00:34]} Bd6 {[%emt 0:00:04]} 7. Bg3 {[%emt 0:00:10]} O-O {[%emt 0:00:04]} 8. Bd3 {[%emt 0:00:13]} Re8 {[%emt 0:01:04]} 9. Ne5 {[%emt 0:00:34]} Bxe5 {[%emt 0:00:35]} 10. dxe5 {[%emt 0:00:24]} Nd7 {[%emt 0:00:04]} 11. f4 {[%emt 0:00:31]} f6 {[%emt 0:00:08]} 12. Qh5 {[%emt 0:02:49]} f5 {[%emt 0:02:49]} 13. Bh4 {[%emt 0:01:15]} Ne7 {[%emt 0:15:23]} 14. Nf3 {[%emt 0:01:13]} Nf8 {[%emt 0:03:06]} 15. g4 {[%emt 0:04:50]} fxg4 {[%emt 0:13:06]} 16. Ng5 {[%emt 0:04:29]} g6 {[%emt 0:06:08]} 17. Qh6 {[%emt 0:01:04]} c4 {[%emt 0:00:23]} 18. Bc2 {[%emt 0:01:25]} Qd7 {[%emt 0:19:51]} 19. h3 {[%emt 0:20:44]} Nf5 {[%emt 0:00:27]} 20. Bxf5 {[%emt 0:02:43]} exf5 {[%emt 0:00:10]} 21. Bf2 {[%emt 0:00:49]} Qg7 {[%emt 0:01:12]} 22. hxg4 {[%emt 0:00:27]} fxg4 {[%emt 0:01:51]} 23. Qxg7+ {[%emt 0:00:31]} Kxg7 {[%emt 0:00:15]} 24. Bh4 {[%emt 0:00:55]} h6 {[%emt 0:04:42]} 25. O-O-O {[%emt 0:00:11]} hxg5 {[%emt 0:00:15]} 26. Bxg5 {[%emt 0:00:18]} Bf5 {[%emt 0:01:25]} 27. Bf6+ {[%emt 0:00:45]} Kf7 {[%emt 0:00:35]} 28. Rh8 {[%emt 0:00:53]} Nd7 {[%emt 0:00:56]} 29. Rh7+ {[%emt 0:00:20]} Ke6 {[%emt 0:00:06]} 30. Bg5 {[%emt 0:00:40]} Nc5 {[%emt 0:00:46]} 31. Rdh1 {[%emt 0:01:32]} Nd3+ {[%emt 0:00:09]} 32. Kd2 {[%emt 0:00:35]} Nf2 {[%emt 0:00:02]} 33. R1h6 {[%emt 0:02:35]} Ne4+ {[%emt 0:00:07]} 34. Ke2 {[%emt 0:00:09]} Nxg5 {[%emt 0:00:02]} 35. fxg5 {[%emt 0:00:13]} Kxe5 {[%emt 0:00:04]} 36. Rxb7 {[%emt 0:00:06]} Rh8 {[%emt 0:00:03]} 0-1

[Event "EYCC Open U10 2021"]
[Site "Tornelo"]
[Date "2021.10.15"]
[Round "9.12"]
[White "Golis, Wiktor"]
[Black "Batalov, Prokhor"]
[Result "1/2-1/2"]
[ECO "D35"]
[WhiteElo "1684"]
[BlackElo "1391"]
[Annotator "NA"]
[PlyCount "90"]
[EventDate "2021.10.15"]
[EventType "swiss"]
[EventCountry "NET"]
[SourceTitle "playchess.com"]
[Source "ChessBase"]
[SourceQuality "1"]
[TimeControl "5400+30"]

1. d4 {[%emt 0:00:30]} d5 {[%emt 0:00:35]} 2. c4 {[%emt 0:00:14]} e6 {[%emt 0:00:06]} 3. Nf3 {[%emt 0:00:16]} c6 {[%emt 0:00:04]} 4. cxd5 {[%emt 0:00:33]} exd5 {[%emt 0:00:06]} 5. Nc3 {[%emt 0:00:11]} Nf6 {[%emt 0:00:08]} 6. Bg5 {[%emt 0:00:06]} Be7 {[%emt 0:00:15]} 7. e3 {[%emt 0:00:16]} Bf5 {[%emt 0:00:09]} 8. Qb3 {[%emt 0:01:06]} Qb6 {[%emt 0:00:09]} 9. Qxb6 {[%emt 0:01:10]} axb6 {[%emt 0:00:04]} 10. Kd2 {[%emt 0:01:47]} Nbd7 {[%emt 0:00:52]} 11. Bd3 {[%emt 0:01:25]} Bxd3 {[%emt 0:00:17]} 12. Kxd3 {[%emt 0:00:51]} O-O {[%emt 0:00:51]} 13. Ne5 {[%emt 0:00:38]} Rfe8 {[%emt 0:00:37]} 14. Bxf6 {[%emt 0:01:26]} Nxf6 {[%emt 0:00:10]} 15. h3 {[%emt 0:01:10]} Bd6 {[%emt 0:00:12]} 16. f4 {[%emt 0:00:15]} Bb4 {[%emt 0:02:39]} 17. a3 {[%emt 0:03:40]} Bxc3 {[%emt 0:00:08]} 18. bxc3 {[%emt 0:00:04]} Ne4 {[%emt 0:00:09]} 19. Rhb1 {[%emt 0:00:10]} b5 {[%emt 0:01:26]} 20. a4 {[%emt 0:00:06]} f6 {[%emt 0:05:15]} 21. Nd7 {[%emt 0:00:55]} Re7 {[%emt 0:00:39]} 22. Nc5 {[%emt 0:01:31]} b6 {[%emt 0:10:45]} 23. Nxe4 {[%emt 0:01:03]} dxe4+ {[%emt 0:00:05]} 24. Kc2 {[%emt 0:00:19]} Rea7 {[%emt 0:00:10]} 25. c4 {[%emt 0:01:54]} Ra5 {[%emt 0:04:08]} 26. d5 {[%emt 0:02:12]} cxd5 {[%emt 0:04:38]} 27. Rxb5 {[%emt 0:03:29]} dxc4 {[%emt 0:02:10]} 28. Rxa5 {[%emt 0:00:25]} Rxa5 {[%emt 0:01:04]} 29. Kc3 {[%emt 0:00:25]} Rc5 {[%emt 0:02:02]} 30. Rb1 {[%emt 0:00:32]} Rc6 {[%emt 0:01:19]} 31. Rb4 {[%emt 0:00:11]} f5 {[%emt 0:05:31]} 32. Rxc4 {[%emt 0:00:48]} Rd6 {[%emt 0:00:12]} 33. Rd4 {[%emt 0:00:08]} Rc6+ {[%emt 0:00:10]} 34. Kb4 {[%emt 0:00:47]} Rc2 {[%emt 0:02:17]} 35. g4 {[%emt 0:00:23]} Re2 {[%emt 0:00:28]} 36. gxf5 {[%emt 0:01:47]} Rxe3 {[%emt 0:00:06]} 37. Kc4 {[%emt 0:01:35]} Kf7 {[%emt 0:00:40]} 38. Kd5 {[%emt 0:00:15]} Rxh3 {[%emt 0:02:39]} 39. Kxe4 {[%emt 0:00:16]} Rb3 {[%emt 0:00:08]} 40. Rc4 {[%emt 0:01:26]} h5 {[%emt 0:00:39]} 41. Rc7+ {[%emt 0:01:43]} Kg8 {[%emt 0:00:41]} 42. Rc8+ {[%emt 0:00:06]} Kh7 {[%emt 0:00:09]} 43. Rc7 {[%emt 0:00:08]} Kg8 {[%emt 0:13:00]} 44. Rc8+ {[%emt 0:00:20]} Kh7 {[%emt 0:01:12]} 45. Rc7 {[%emt 0:00:34]} Kg8 {[%emt 0:02:35]} 1/2-1/2